fUSD/lending_fUSD_20260202
["ID","MTS","AMOUNT","RATE_DAILY","PERIOD"]
[404348283,1770070302396,-500.0,0.00043287,120]
[404348284,1770070302406,-500.0,0.00043287,120]
[404348285,1770070302415,-360.78880908,0.00043287,120]
[404348286,1770070302425,-500.0,0.00043287,120]
[404348287,1770070302435,-309.11283112,0.00043287,120]
[404348288,1770070302444,-500.0,0.00043287,120]
[404348289,1770070302454,-500.0,0.00043287,120]
[404348290,1770070302463,-500.0,0.00043287,120]
[404348291,1770070302473,-500.0,0.00043287,120]
[404348292,1770070302482,-500.0,0.00043287,120]
[404348293,1770070302493,-573.17552639,0.00043287,120]
[404348294,1770070302502,-502.84026554,0.00043287,120]
[404348295,1770070302512,-529.03099376,0.00043287,120]
[404348296,1770070302522,-500.0,0.00043287,120]
[404348297,1770070302534,-500.0,0.00043287,120]
[404348298,1770070302544,-500.0,0.00043287,120]
[404348299,1770070302554,-500.0,0.00043287,120]
[404348300,1770070302564,-500.0,0.00043287,120]
[404348301,1770070302575,-217.6124802,0.00043287,120]
[404348302,1770070302585,-632.57569546,0.00043287,120]
[404348303,1770070302596,-500.0,0.00043287,120]
[404348304,1770070302606,-500.0,0.00043287,120]
[404348305,1770070302617,-500.0,0.00043287,120]
[404348306,1770070302626,-363.04571453,0.00043287,120]
[404348307,1770070302636,-500.0,0.00043287,120]
[404348308,1770070302646,-500.0,0.00043287,120]
[404348309,1770070302655,-500.0,0.00043287,120]
[404348310,1770070302666,-500.0,0.00043287,120]
[404348311,1770070302676,-500.0,0.00043287,120]
[404348312,1770070302686,-500.0,0.00043287,120]
[404348313,1770070302695,-500.0,0.00043287,120]
[404348314,1770070302704,-391.94648406,0.00043287,120]
[404348315,1770070302714,-369.05220279,0.00043287,120]
[404348316,1770070302723,-500.0,0.00043287,120]
[404348317,1770070302735,-500.0,0.00043287,120]
[404348318,1770070302744,-500.0,0.00043287,120]
[404348319,1770070302754,-312.19154653,0.00043287,120]
[404348320,1770070302763,-157.56663356,0.00043287,120]
[404348321,1770070302773,-500.0,0.00043287,120]
[404348322,1770070302783,-500.0,0.00043287,120]
[404348323,1770070302792,-500.0,0.00043287,120]
[404348324,1770070302802,-506.50184687,0.00043287,120]
[404348325,1770070302811,-500.0,0.00043287,120]
[404348326,1770070302821,-500.0,0.00043287,120]
[404348327,1770070302830,-502.41647979,0.00043287,120]
[404348328,1770070302840,-194.0382144,0.00043287,120]
[404348329,1770070302849,-518.97930469,0.00043287,120]
[404348330,1770070302859,-500.0,0.00043287,120]
[404348331,1770070302868,-500.0,0.00043287,120]
[404348332,1770070302878,-500.0,0.00043287,120]
[404348333,1770070302887,-500.0,0.00043287,120]
[404348334,1770070302897,-566.17844964,0.00043287,120]
[404348335,1770070302907,-500.0,0.00043287,120]
[404348336,1770070302916,-500.0,0.00043287,120]
[404348337,1770070302926,-500.0,0.00043287,120]
[404348338,1770070302935,-502.58618474,0.00043287,120]
[404348339,1770070302944,-573.16672784,0.00043287,120]
[404348340,1770070302954,-500.0,0.00043287,120]
[404348341,1770070302963,-551.91567094,0.00043287,120]
[404348342,1770070302972,-549.22011189,0.00043287,120]
[404348343,1770070302981,-513.16944581,0.00043287,120]
[404348344,1770070302990,-501.62966351,0.00043287,120]
[404348345,1770070303000,-500.0,0.00043287,120]
[404348346,1770070303009,-500.0,0.00043287,120]
[404348347,1770070303019,-500.0,0.00043287,120]
[404348348,1770070303029,-500.0,0.00043287,120]
[404348349,1770070303039,-418.7318566,0.00043287,120]
[404348350,1770070303049,-519.07067986,0.00043287,120]
[404348351,1770070303058,-500.0,0.00043287,120]
[404348352,1770070303067,-500.0,0.00043287,120]
[404348353,1770070303077,-512.03898961,0.00043287,120]
[404348354,1770070303086,-503.8941538,0.00043287,120]
[404348355,1770070303095,-500.0,0.00043287,120]
[404348356,1770070303104,-506.9161262,0.00043287,120]
[404348357,1770070303114,-500.0,0.00043287,120]
[404348358,1770070303123,-523.83149581,0.00043287,120]
[404348359,1770070303133,-500.0,0.00043287,120]
[404348360,1770070303142,-500.0,0.00043287,120]
[404348361,1770070303151,-500.0,0.00043287,120]
[404348362,1770070303160,-500.0,0.00043287,120]
[404348363,1770070303169,-500.0,0.00043287,120]
[404348364,1770070303179,-500.0,0.00043287,120]
[404348365,1770070303188,-321.65898782,0.00043287,120]
[404348366,1770070303198,-506.84408967,0.00043287,120]
[404348367,1770070303208,-515.09807735,0.00043287,120]
[404348368,1770070303219,-511.27732318,0.00043287,120]
[404348369,1770070303228,-500.0,0.00043287,120]
[404348370,1770070303241,-600.22650504,0.00043287,120]
[404348371,1770070303250,-524.20120741,0.00043287,120]
[404348372,1770070303260,-535.11783587,0.00043287,120]
[404348373,1770070303271,-547.70938497,0.00043287,120]
[404348374,1770070303282,-500.0,0.00043287,120]
[404348375,1770070303293,-500.0,0.00043287,120]
[404348376,1770070303303,-500.0,0.00043287,120]
[404348377,1770070303315,-500.0,0.00043287,120]
[404348378,1770070303326,-504.31391984,0.00043287,120]
[404348379,1770070303336,-290.83783223,0.00043287,120]
[404348380,1770070303346,-500.0,0.00043287,120]
[404348381,1770070303355,-500.0,0.00043287,120]
[404348382,1770070303364,-500.0,0.00043287,120]
[404348383,1770070303373,-500.0,0.00043287,120]
[404348384,1770070303383,-269.67463134,0.00043287,120]
[404348385,1770070303392,-500.0,0.00043287,120]
[404348386,1770070303401,-508.68038264,0.00043287,120]
[404348387,1770070303411,-500.0,0.00043287,120]
[404348388,1770070303420,-555.7179022,0.00043287,120]
[404348389,1770070303429,-506.20550605,0.00043287,120]
[404348390,1770070303439,-500.0,0.00043287,120]
[404348391,1770070303449,-500.0,0.00043287,120]
[404348392,1770070303458,-500.0,0.00043287,120]
[404348393,1770070303467,-502.37370418,0.00043287,120]
[404348394,1770070303477,-500.0,0.00043287,120]
[404348395,1770070303486,-500.0,0.00043287,120]
[404348396,1770070303495,-500.0,0.00043287,120]
[404348397,1770070303504,-186.17967002,0.00043287,120]
[404348398,1770070303514,-514.46383539,0.00043287,120]
[404348399,1770070303524,-601.12388448,0.00043287,120]
[404348400,1770070303533,-519.76860443,0.00043287,120]
[404348401,1770070303543,-500.0,0.00043287,120]
[404348402,1770070303553,-189.43208801,0.00043287,120]
[404348403,1770070303563,-500.0,0.00043287,120]
[404348404,1770070303727,-500.0,0.00043287,120]
[404348405,1770070303738,-580.79201417,0.00043287,120]
[404348406,1770070303748,-600.83711511,0.00043287,120]
[404348407,1770070303757,-500.0,0.00043287,120]
[404348408,1770070303766,-506.01461989,0.00043287,120]
[404348409,1770070303775,-506.03977607,0.00043287,120]
[404348410,1770070303785,-8566.25,0.00043287,120]
[404348411,1770070303794,-500.0,0.00043287,120]
[404348412,1770070303803,-8566.25,0.00043287,120]
[404348413,1770070303813,-500.0,0.00043287,120]
[404348414,1770070303822,-8566.25,0.00043287,120]
[404348415,1770070303831,-500.0,0.00043287,120]
[404348416,1770070303840,-8566.25,0.00043287,120]
[404348417,1770070303850,-500.0,0.00043287,120]
[404348418,1770070303859,-8566.25,0.00043287,120]
[404348419,1770070303868,-500.0,0.00043287,120]
[404348420,1770070303878,-8566.25,0.00043287,120]
[404348421,1770070303888,-500.0,0.00043287,120]
[404348422,1770070303898,-8566.25,0.00043287,120]
[404348423,1770070303907,-500.0,0.00043287,120]
[404348424,1770070303916,-514.8500653,0.00043287,120]
[404348425,1770070303926,-8566.25,0.00043287,120]
[404348426,1770070303935,-503.93230129,0.00043287,120]
[404348427,1770070303944,-8566.25,0.00043287,120]
[404348428,1770070303953,-8566.25,0.00043287,120]
[404348429,1770070303962,-513.63812718,0.00043287,120]
[404348430,1770070303971,-500.0,0.00043287,120]
[404348431,1770070303980,-8566.25,0.00043287,120]
[404348432,1770070303990,-500.0,0.00043287,120]
[404348433,1770070303999,-8566.25,0.00043287,120]
[404348434,1770070304008,-357.20405723,0.00043287,120]
[404348435,1770070304017,-8566.25,0.00043287,120]
[404348436,1770070304027,-8566.25,0.00043287,120]
[404348437,1770070304036,-8566.25,0.00043287,120]
[404348438,1770070304045,-500.0,0.00043287,120]
[404348439,1770070304054,-8566.25,0.00043287,120]
[404348440,1770070304063,-500.0,0.00043287,120]
[404348441,1770070304073,-8566.25,0.00043287,120]
[404348442,1770070304084,-500.0,0.00043287,120]
[404348443,1770070304096,-8566.25,0.00043287,120]
[404348444,1770070304106,-500.0,0.00043287,120]
[404348445,1770070304117,-8566.25,0.00043287,120]
[404348446,1770070304127,-500.0,0.00043287,120]
[404348447,1770070304138,-8566.25,0.00043287,120]
[404348448,1770070304147,-513.26084433,0.00043287,120]
[404348449,1770070304158,-8566.25,0.00043287,120]
[404348450,1770070304167,-500.0,0.00043287,120]
[404348451,1770070304176,-8566.25,0.00043287,120]
[404348452,1770070304185,-585.09233429,0.00043287,120]
[404348453,1770070304195,-8566.25,0.00043287,120]
[404348454,1770070304204,-500.0,0.00043287,120]
[404348455,1770070304214,-8566.3174,0.00043287,120]
[404348456,1770070304223,-625.09756396,0.00043287,120]
[404348457,1770070304233,-527.67629654,0.00043287,120]
[404348458,1770070304244,-500.0,0.00043287,120]
[404348459,1770070304254,-500.0,0.00043287,120]
[404348460,1770070304264,-500.0,0.00043287,120]
[404348461,1770070304275,-500.0,0.00043287,120]
[404348462,1770070304284,-500.0,0.00043287,120]
[404348463,1770070304293,-500.0,0.00043287,120]
[404348464,1770070304302,-503.93862391,0.00043287,120]
[404348465,1770070304313,-500.0,0.00043287,120]
[404348466,1770070304323,-500.0,0.00043287,120]
[404348467,1770070304333,-500.0,0.00043287,120]
[404348468,1770070304343,-500.0,0.00043287,120]
[404348469,1770070304352,-500.0,0.00043287,120]
[404348470,1770070304362,-500.0,0.00043287,120]
[404348471,1770070304374,-223.20337215,0.00043287,120]
[404348472,1770070304383,-580.08417078,0.00043287,120]
[404348473,1770070304393,-500.0,0.00043287,120]
[404348474,1770070304402,-505.53013093,0.00043287,120]
[404348475,1770070304411,-500.0,0.00043287,120]
[404348476,1770070304420,-527.74671561,0.00043287,120]
[404348477,1770070304429,-569.78706305,0.00043287,120]
[404348478,1770070304438,-521.33573647,0.00043287,120]
[404348479,1770070304448,-512.55910319,0.00043287,120]
[404348480,1770070304460,-154.12618634,0.00043287,120]
[404348481,1770070304471,-500.0,0.00043287,120]
[404348482,1770070304481,-500.0,0.00043287,120]
[404348483,1770070304490,-393.59066605,0.00043287,120]
[404348484,1770070304499,-500.0,0.00043287,120]
[404348485,1770070304508,-500.0,0.00043287,120]
[404348486,1770070304518,-555.6449775,0.00043287,120]
[404348487,1770070304527,-289.10842592,0.00043287,120]
[404348488,1770070304537,-513.00911647,0.00043287,120]
[404348489,1770070304548,-507.75995024,0.00043287,120]
[404348490,1770070304559,-500.0,0.00043287,120]
[404348491,1770070304568,-500.0,0.00043287,120]
[404348492,1770070304578,-596.98204664,0.00043287,120]
[404348493,1770070304588,-500.0,0.00043287,120]
[404348494,1770070304597,-500.0,0.00043287,120]
[404348495,1770070304607,-500.0,0.00043287,120]
[404348496,1770070304616,-571.14876167,0.00043287,120]
[404348497,1770070304625,-165.25468548,0.00043287,120]
[404348498,1770070304636,-500.0,0.00043287,120]
[404348499,1770070304645,-507.33178989,0.00043287,120]
[404348500,1770070304654,-500.0,0.00043287,120]
[404348501,1770070304663,-510.96629248,0.00043287,120]
[404348502,1770070304672,-500.0,0.00043287,120]
[404348503,1770070304681,-544.57763117,0.00043287,120]
[404348504,1770070304690,-500.0,0.00043287,120]
[404348505,1770070304699,-500.0,0.00043287,120]
[404348506,1770070304708,-500.0,0.00043287,120]
[404348507,1770070304717,-500.0,0.00043287,120]
[404348508,1770070304727,-500.0,0.00043287,120]
[404348509,1770070304736,-500.0,0.00043287,120]
[404348510,1770070304745,-500.0,0.00043287,120]
[404348511,1770070304754,-500.0,0.00043287,120]
[404348512,1770070304763,-500.0,0.00043287,120]
[404348513,1770070304772,-300.0,0.00043287,2]
[404348514,1770070304781,-303.35963854,0.00043287,120]
[404348515,1770070304790,-500.0,0.00043287,120]
[404348516,1770070304799,-247.53213301,0.00043287,120]
[404348517,1770070304808,-623.17645541,0.00043287,120]
[404348518,1770070304817,-300.0,0.00043287,2]
[404348519,1770070304826,-584.70738249,0.00043287,120]
[404348520,1770070304835,-300.0,0.00043287,2]
[404348521,1770070304843,-300.0,0.00043287,2]
[404348522,1770070304852,-300.0,0.00043287,2]
[404348523,1770070304861,-300.0,0.00043287,2]
[404348524,1770070304870,-500.0,0.00043287,120]
[404348525,1770070304879,-300.0,0.00043287,2]
[404348526,1770070304890,-500.0,0.00043287,120]
[404348527,1770070304899,-500.0,0.00043287,120]
[404348528,1770070304908,-300.0,0.00043287,2]
[404348529,1770070304917,-603.7792375,0.00043287,120]
[404348530,1770070304926,-296.43494192,0.00043287,120]
[404348531,1770070304935,-300.0,0.00043287,2]
[404348532,1770070304944,-500.0,0.00043287,120]
[404348533,1770070304953,-513.15529175,0.00043287,120]
[404348534,1770070304961,-500.0,0.00043287,120]
[404348535,1770070304972,-300.0,0.00043287,2]
[404348536,1770070304981,-500.0,0.00043287,120]
[404348537,1770070304991,-500.0,0.00043287,120]
[404348538,1770070305001,-300.0,0.00043287,2]
[404348539,1770070305012,-500.0,0.00043287,120]
[404348540,1770070305023,-500.0,0.00043287,120]
[404348541,1770070305033,-500.0,0.00043287,120]
[404348542,1770070305043,-300.0,0.00043287,2]
[404348543,1770070305052,-173.60535407,0.00043287,120]
[404348544,1770070305061,-572.06549254,0.00043287,120]
[404348545,1770070305070,-300.0,0.00043287,2]
[404348546,1770070305080,-385.93041719,0.00043287,2]
[404348547,1770070305089,-341.1038678,0.00043287,120]
[404348548,1770070305100,-500.0,0.00043287,120]
[404348549,1770070305110,-555.78033578,0.00043287,120]
[404348550,1770070305120,-517.36355835,0.00043287,120]
[404348551,1770070305129,-500.0,0.00043287,120]
[404348552,1770070305139,-500.0,0.00043287,120]
[404348553,1770070305148,-500.0,0.00043287,120]
[404348554,1770070305158,-500.0,0.00043287,120]
[404348555,1770070305166,-586.39157477,0.00043287,120]
[404348556,1770070305176,-500.0,0.00043287,120]
[404348557,1770070305184,-566.73196066,0.00043287,120]
[404348558,1770070305194,-500.0,0.00043287,120]
[404348559,1770070305203,-500.0,0.00043287,120]
[404348560,1770070305212,-500.0,0.00043287,120]
[404348561,1770070305221,-500.0,0.00043287,120]
[404348562,1770070305230,-500.0,0.00043287,120]
[404348563,1770070305243,-501.66473796,0.00043287,120]
[404348564,1770070305253,-219.55487053,0.00043287,120]
[404348565,1770070305261,-500.0,0.00043287,120]
[404348566,1770070305271,-500.0,0.00043287,120]
[404348567,1770070305282,-386.13215007,0.00043287,120]
[404348568,1770070305291,-199.83821842,0.00043287,120]
[404348569,1770070305301,-500.0,0.00043287,120]
[404348570,1770070305311,-500.0,0.00043287,120]
[404348571,1770070305320,-500.0,0.00043287,120]
[404348572,1770070305329,-500.0,0.00043287,120]
[404348573,1770070305339,-472.94859389,0.00043287,120]
[404348574,1770070305348,-500.0,0.00043287,120]
[404348575,1770070305357,-500.0,0.00043287,120]
[404348576,1770070305367,-630.87503278,0.00043287,120]
[404348577,1770070305376,-502.8455926,0.00043287,120]
[404348578,1770070305385,-541.99636939,0.00043287,120]
[404348579,1770070305395,-500.0,0.00043287,120]
[404348580,1770070305404,-500.0,0.00043287,120]
[404348581,1770070305413,-500.0,0.00043287,120]
[404348582,1770070305422,-500.0,0.00043287,120]
[404348583,1770070305432,-412.15568556,0.00043287,120]
[404348584,1770070305441,-555.83236653,0.00043287,120]
[404348585,1770070305450,-500.0,0.00043287,120]
[404348586,1770070305459,-518.037699,0.00043287,120]
[404348587,1770070305468,-500.0,0.00043287,120]
[404348588,1770070305477,-575.73993683,0.00043287,120]
[404348589,1770070305486,-521.70746822,0.00043287,120]
[404348590,1770070305495,-400.0,0.00043287,120]
[404348591,1770070305503,-500.0,0.00043287,120]
[404348592,1770070305512,-308.16466948,0.00043287,120]
[404348593,1770070305521,-500.0,0.00043287,120]
[404348594,1770070305530,-500.0,0.00043287,120]
[404348595,1770070305539,-500.0,0.00043287,120]
[404348596,1770070305548,-503.15999295,0.00043287,120]
[404348597,1770070305557,-500.0,0.00043287,120]
[404348598,1770070305566,-599.60072549,0.00043287,120]
[404348599,1770070305575,-500.0,0.00043287,120]
[404348600,1770070305584,-500.0,0.00043287,120]
[404348601,1770070305593,-500.0,0.00043287,120]
[404348602,1770070305602,-500.0,0.00043287,120]
[404348603,1770070305611,-219.74910962,0.00043287,120]
[404348604,1770070305620,-518.62240418,0.00043287,120]
[404348605,1770070305629,-500.0,0.00043287,120]
[404348606,1770070305639,-490.81744866,0.00043287,120]
[404348607,1770070305648,-515.27389152,0.00043287,120]
[404348608,1770070305657,-537.63275321,0.00043287,120]
[404348609,1770070305667,-500.0,0.00043287,120]
[404348610,1770070305675,-500.0,0.00043287,120]
[404348611,1770070305684,-500.0,0.00043287,120]
[404348612,1770070305694,-500.0,0.00043287,120]
[404348613,1770070305703,-500.0,0.00043287,120]
[404348614,1770070305712,-262.88976789,0.00043287,120]
[404348615,1770070305722,-500.0,0.00043287,120]
[404348616,1770070305731,-500.0,0.00043287,120]
[404348617,1770070305740,-500.0,0.00043287,120]
[404348618,1770070305749,-500.0,0.00043287,120]
[404348619,1770070305759,-500.0,0.00043287,120]
[404348620,1770070305768,-500.0,0.00043287,120]
[404348621,1770070305777,-500.0,0.00043287,120]
[404348622,1770070305786,-500.0,0.00043287,120]
[404348623,1770070305796,-582.34333414,0.00043287,120]
[404348624,1770070305805,-500.0,0.00043287,120]
[404348625,1770070305814,-500.0,0.00043287,120]
[404348626,1770070305823,-500.0,0.00043287,120]
[404348627,1770070305832,-500.0,0.00043287,120]
[404348628,1770070305841,-500.0,0.00043287,120]
[404348629,1770070305851,-388.64374367,0.00043287,120]
[404348630,1770070305860,-500.0,0.00043287,120]
[404348631,1770070305870,-500.0,0.00043287,120]
[404348632,1770070305879,-402.16572203,0.00043287,120]
[404348633,1770070305889,-500.0,0.00043287,120]
[404348634,1770070305898,-500.0,0.00043287,120]
[404348635,1770070305907,-500.0,0.00043287,120]
[404348636,1770070305916,-242.25730445,0.00043287,120]
[404348637,1770070305926,-528.15978309,0.00043287,120]
[404348638,1770070305937,-500.0,0.00043287,120]
[404348639,1770070305947,-500.0,0.00043287,120]
[404348640,1770070305957,-500.0,0.00043287,120]
[404348641,1770070305967,-500.0,0.00043287,120]
[404348642,1770070305976,-500.0,0.00043287,120]
[404348643,1770070305985,-500.0,0.00043287,120]
[404348644,1770070305995,-500.0,0.00043287,120]
[404348645,1770070306005,-262.78489501,0.00043287,120]
[404348646,1770070306015,-355.53847295,0.00043287,120]
[404348647,1770070306027,-515.20272255,0.00043287,120]
[404348648,1770070306036,-536.67775842,0.00043287,120]
[404348649,1770070306045,-500.0,0.00043287,120]
[404348650,1770070306053,-514.85108788,0.00043287,120]
[404348651,1770070306063,-500.0,0.00043287,120]
[404348652,1770070306072,-500.0,0.00043287,120]
[404348653,1770070306081,-500.0,0.00043287,120]
[404348654,1770070306090,-500.0,0.00043287,120]
[404348655,1770070306099,-511.09604878,0.00043287,120]
[404348656,1770070306108,-500.0,0.00043287,120]
[404348657,1770070306118,-500.0,0.00043287,120]
[404348658,1770070306129,-500.0,0.00043287,120]
[404348659,1770070306138,-625.46511823,0.00043287,120]
[404348660,1770070306147,-514.08449095,0.00043287,120]
[404348661,1770070306158,-520.73294064,0.00043287,120]
[404348662,1770070306169,-500.0,0.00043287,120]
[404348663,1770070306180,-515.46973386,0.00043287,120]
[404348664,1770070306191,-504.05060829,0.00043287,120]
[404348665,1770070306202,-500.0,0.00043287,120]
[404348666,1770070306211,-500.0,0.00043287,120]
[404348667,1770070306223,-617.9191841,0.00043287,120]
[404348668,1770070306237,-500.0,0.00043287,120]
[404348669,1770070306247,-524.4475481,0.00043287,120]
[404348670,1770070306256,-500.0,0.00043287,120]
[404348671,1770070306265,-500.0,0.00043287,120]
[404348672,1770070306274,-500.0,0.00043287,120]
[404348673,1770070306285,-524.91215248,0.00043287,120]
[404348674,1770070306294,-500.0,0.00043287,120]
[404348675,1770070306303,-320.10146207,0.00043287,120]
[404348676,1770070306313,-500.0,0.00043287,120]
[404348677,1770070306322,-500.0,0.00043287,120]
[404348678,1770070306330,-426.39086987,0.00043287,120]
[404348679,1770070306339,-267.35447076,0.00043287,120]
[404348680,1770070306348,-563.52664355,0.00043287,120]
[404348681,1770070306357,-500.0,0.00043287,120]
[404348682,1770070306366,-583.39701345,0.00043287,120]
[404348683,1770070306375,-500.0,0.00043287,120]
[404348684,1770070306384,-500.0,0.00043287,120]
[404348685,1770070306393,-505.49103514,0.00043287,120]
[404348686,1770070306402,-621.43001942,0.00043287,120]
[404348687,1770070306410,-519.49570966,0.00043287,120]
[404348688,1770070306419,-500.0,0.00043287,120]
[404348689,1770070306428,-500.0,0.00043287,120]
[404348690,1770070306437,-500.0,0.00043287,120]
[404348691,1770070306447,-500.0,0.00043287,120]
[404348692,1770070306455,-180.99698234,0.00043287,120]
[404348693,1770070306464,-500.0,0.00043287,120]
[404348694,1770070306473,-500.0,0.00043287,120]
[404348695,1770070306626,-500.0,0.00043287,120]
[404348696,1770070306638,-500.0,0.00043287,120]
[404348697,1770070306648,-500.0,0.00043287,120]
[404348698,1770070306658,-500.0,0.00043287,120]
[404348699,1770070306667,-500.0,0.00043287,120]
[404348700,1770070306677,-500.0,0.00043287,120]
[404348701,1770070306686,-500.0,0.00043287,120]
[404348702,1770070306695,-500.0,0.00043287,120]
[404348703,1770070306705,-616.97811218,0.00043287,120]
[404348704,1770070306714,-507.52682363,0.00043287,120]
[404348705,1770070306724,-500.0,0.00043287,120]
[404348706,1770070306733,-500.0,0.00043287,120]
[404348707,1770070306743,-500.0,0.00043287,120]
[404348708,1770070306752,-500.0,0.00043287,120]
[404348709,1770070306762,-500.0,0.00043287,120]
[404348710,1770070306771,-500.0,0.00043287,120]
[404348711,1770070306781,-500.0,0.00043287,120]
[404348712,1770070306790,-500.0,0.00043287,120]
[404348713,1770070306799,-500.0,0.00043287,120]
[404348714,1770070306808,-500.0,0.00043287,120]
[404348715,1770070306818,-500.0,0.00043287,120]
[404348716,1770070306827,-500.0,0.00043287,120]
[404348717,1770070306836,-500.0,0.00043287,120]
[404348718,1770070306845,-500.0,0.00043287,120]
[404348719,1770070306855,-500.0,0.00043287,120]
[404348720,1770070306864,-500.0,0.00043287,120]
[404348721,1770070306873,-503.35026758,0.00043287,120]
[404348722,1770070306882,-540.95797997,0.00043287,120]
[404348723,1770070306891,-520.67516685,0.00043287,120]
[404348724,1770070306900,-500.0,0.00043287,120]
[404348725,1770070306909,-413.19060476,0.00043287,120]
[404348726,1770070306918,-500.0,0.00043287,120]
[404348727,1770070306927,-368.62236721,0.00043287,120]
[404348728,1770070306936,-531.30325075,0.00043287,120]
[404348729,1770070306945,-528.9710868,0.00043287,120]
[404348730,1770070306955,-500.0,0.00043287,120]
[404348731,1770070306963,-551.18201868,0.00043287,120]
[404348732,1770070306972,-500.0,0.00043287,120]
[404348733,1770070306983,-500.0,0.00043287,120]
[404348734,1770070306992,-500.0,0.00043287,120]
[404348735,1770070307001,-408.48353483,0.00043287,120]
[404348736,1770070307010,-373.68452023,0.00043287,120]
[404348737,1770070307019,-623.86958826,0.00043287,120]
[404348738,1770070307029,-500.0,0.00043287,120]
[404348739,1770070307038,-224.54026222,0.00043287,120]
[404348740,1770070307047,-562.87175962,0.00043287,120]
[404348741,1770070307056,-511.28822274,0.00043287,120]
[404348742,1770070307065,-500.0,0.00043287,120]
[404348743,1770070307074,-500.0,0.00043287,120]
[404348744,1770070307084,-530.04316325,0.00043287,120]
[404348745,1770070307092,-500.0,0.00043287,120]
[404348746,1770070307102,-500.0,0.00043287,120]
[404348747,1770070307111,-205.71468885,0.00043287,120]
[404348748,1770070307120,-394.9591413,0.00043287,120]
[404348749,1770070307129,-523.37231156,0.00043287,120]
[404348750,1770070307138,-500.0,0.00043287,120]
[404348751,1770070307147,-500.0,0.00043287,120]
[404348752,1770070307156,-500.0,0.00043287,120]
[404348753,1770070307166,-500.0,0.00043287,120]
[404348754,1770070307175,-625.7721394,0.00043287,120]
[404348755,1770070307185,-500.0,0.00043287,120]
[404348756,1770070307194,-510.77559787,0.00043287,120]
[404348757,1770070307203,-500.0,0.00043287,120]
[404348758,1770070307212,-487.39160791,0.00043287,120]
[404348759,1770070307222,-500.0,0.00043287,120]
[404348760,1770070307231,-500.0,0.00043287,120]
[404348761,1770070307244,-512.36461243,0.00043287,120]
[404348762,1770070307253,-585.64338013,0.00043287,120]
[404348763,1770070307263,-513.45126005,0.00043287,120]
[404348764,1770070307273,-500.0,0.00043287,3]
[404348765,1770070307282,-500.0,0.00043287,3]
[404348766,1770070307291,-500.0,0.00043287,3]
[404348767,1770070307301,-564.51788061,0.00043287,120]
[404348768,1770070307312,-500.0,0.00043287,3]
[404348769,1770070307321,-629.56946592,0.00043287,120]
[404348770,1770070307330,-500.0,0.00043287,3]
[404348771,1770070307339,-560.81418911,0.00043287,120]
[404348772,1770070307349,-500.0,0.00043287,120]
[404348773,1770070307358,-555.62020127,0.00043287,3]
[404348774,1770070307367,-536.54673325,0.00043287,120]
[404348775,1770070307378,-500.0,0.00043287,120]
[404348776,1770070307389,-500.0,0.00043287,120]
[404348777,1770070307399,-500.0,0.00043287,120]
[404348778,1770070307409,-500.0,0.00043287,120]
[404348779,1770070307418,-500.0,0.00043287,120]
[404348780,1770070307427,-284.42816346,0.00043287,120]
[404348781,1770070307437,-511.47909025,0.00043287,120]
[404348782,1770070307446,-504.98470105,0.00043287,120]